[Event "NED-ch U14 Youth 2019"]
[Site "Assen"]
[Date "2019.04.28"]
[Round "1.11"]
[White "Van Foreest, Nanne"]
[Black "Franke, Daniel"]
[Result "0-1"]
[ECO "B33"]
[WhiteElo "1790"]
[BlackElo "1465"]
[Annotator "NA"]
[PlyCount "123"]
[EventDate "2019.04.27"]
[EventType "swiss"]
[EventCountry "NED"]
[SourceTitle "playchess.com"]
[Source "ChessBase"]
[SourceQuality "1"]
[TimeControl "5400+30"]

1. e4 {[%emt 0:00:00]} c5 {[%emt 0:00:00]} 2. Nf3 {[%emt 0:00:00]} Nc6 {[%emt 0:00:00]} 3. d4 {[%emt 0:00:00]} cxd4 {[%emt 0:00:00]} 4. Nxd4 {[%emt 0:00:00]} e5 {[%emt 0:00:00]} 5. Nb5 {[%emt 0:00:03]} d6 {[%emt 0:00:24]} 6. N1c3 {[%emt 0:00:15]} a6 {[%emt 0:00:24]} 7. Na3 {[%emt 0:00:05]} Nf6 {[%emt 0:00:16]} 8. Bg5 {[%emt 0:00:06]} Be7 {[%emt 0:01:58]} 9. Bxf6 {[%emt 0:00:57]} Bxf6 {[%emt 0:00:46]} 10. Nd5 {[%emt 0:00:11]} Be6 {[%emt 0:11:29]} 11. Nc4 {[%emt 0:04:56]} O-O {[%emt 0:33:49]} 12. Nxd6 {[%emt 0:05:23]} Bxd5 {[%emt 0:01:19]} 13. Qxd5 {[%emt 0:03:50]} Nb4 {[%emt 0:00:29]} 14. Qd2 {[%emt 0:01:58]} Nxc2+ {[%emt 0:00:14]} 15. Qxc2 {[%emt 0:00:04]} Qxd6 {[%emt 0:00:05]} 16. Be2 {[%emt 0:01:10]} Qb4+ {[%emt 0:03:45]} 17. Qd2 {[%emt 0:08:29]} Qxe4 {[%emt 0:00:15]} 18. O-O {[%emt 0:00:51]} Rfd8 {[%emt 0:04:49]} 19. Qe1 {[%emt 0:00:52]} Qc2 {[%emt 0:11:09]} 20. Rb1 {[%emt 0:04:44]} Rac8 {[%emt 0:08:10]} 21. Bf3 {[%emt 0:01:32]} Qc7 {[%emt 0:01:38]} 22. Qe3 {[%emt 0:02:05]} Qe7 {[%emt 0:05:28]} 23. Rfe1 {[%emt 0:01:16]} b5 {[%emt 0:04:53]} 24. Qb6 {[%emt 0:01:32]} Rd6 {[%emt 0:01:24]} 25. Qa5 {[%emt 0:01:13]} Qd8 {[%emt 0:01:56]} 26. Qa3 {[%emt 0:00:35]} Qb6 {[%emt 0:00:40]} 27. Rbc1 {[%emt 0:01:12]} Rcd8 {[%emt 0:00:43]} 28. Be4 {[%emt 0:00:48]} Rd2 {[%emt 0:01:13]} 29. Rf1 {[%emt 0:01:54]} Qd4 {[%emt 0:00:12]} 30. Bc2 {[%emt 0:01:39]} Re2 {[%emt 0:01:15]} 31. Rcd1 {[%emt 0:01:36]} Rd2 {[%emt 0:00:59]} 32. Rc1 {[%emt 0:00:47]} Re2 {[%emt 0:00:35]} 33. Qxa6 {[%emt 0:00:21]} Bg5 {[%emt 0:00:38]} 34. Qxb5 {[%emt 0:00:41]} Rxf2 {[%emt 0:01:29]} 35. Rxf2 {[%emt 0:00:21]} Bxc1 {[%emt 0:00:09]} 36. Kf1 {[%emt 0:02:46]} g6 {[%emt 0:02:37]} 37. Qb3 {[%emt 0:01:22]} Rd7 {[%emt 0:00:47]} 38. Qa4 {[%emt 0:03:56]} Qd5 {[%emt 0:00:52]} 39. b4 {[%emt 0:01:14]} Qc4+ {[%emt 0:00:35]} 40. Kg1 {[%emt 0:00:21]} Qc3 {[%emt 0:01:21]} 41. g3 {[%emt 0:01:34]} Rd8 {[%emt 0:01:13]} 42. Qa7 {[%emt 0:00:55]} Rf8 {[%emt 0:00:31]} 43. Re2 {[%emt 0:12:06]} Qf3 {[%emt 0:00:17]} 44. Rxe5 {[%emt 0:00:58]} Qc3 {[%emt 0:00:41]} 45. Qc5 {[%emt 0:00:30]} Qxc5+ {[%emt 0:00:26]} 46. Rxc5 {[%emt 0:00:01]} Be3+ {[%emt 0:00:08]} 47. Kg2 {[%emt 0:00:13]} Bxc5 {[%emt 0:00:02]} 48. bxc5 {[%emt 0:00:01]} Rc8 {[%emt 0:00:11]} 49. a4 {[%emt 0:00:28]} Rxc5 {[%emt 0:00:12]} 50. Bd3 {[%emt 0:00:04]} Kg7 {[%emt 0:00:17]} 51. Kf3 {[%emt 0:00:16]} Rc3 {[%emt 0:00:19]} 52. Ke4 {[%emt 0:00:07]} Rb3 {[%emt 0:00:22]} 53. Bb5 {[%emt 0:00:16]} f5+ {[%emt 0:00:17]} 54. Kd5 {[%emt 0:00:35]} Rb2 {[%emt 0:00:15]} 55. h3 {[%emt 0:00:15]} Rb3 {[%emt 0:00:06]} 56. g4 {[%emt 0:00:16]} f4 {[%emt 0:00:53]} 57. Ke4 {[%emt 0:00:33]} f3 {[%emt 0:00:16]} 58. Bd3 {[%emt 0:00:39]} f2 {[%emt 0:00:43]} 59. Be2 {[%emt 0:00:38]} Rb1 {[%emt 0:00:20]} 60. a5 {[%emt 0:00:29]} f1=Q {[%emt 0:00:11]} 61. Bxf1 {[%emt 0:00:00]} Rxf1 {[%emt 0:00:09]} 62. Kd4 {[%emt 0:00:41]} 0-1

[Event "NED-ch U14 Youth 2019"]
[Site "Assen"]
[Date "2019.04.28"]
[Round "1.12"]
[White "De Putter, Sven"]
[Black "Yeh, Timo"]
[Result "0-1"]
[ECO "C58"]
[WhiteElo "1381"]
[BlackElo "1783"]
[Annotator "NA"]
[PlyCount "36"]
[EventDate "2019.04.27"]
[EventType "swiss"]
[EventCountry "NED"]
[SourceTitle "playchess.com"]
[Source "ChessBase"]
[SourceQuality "1"]
[TimeControl "5400+30"]

1. e4 {[%emt 0:00:00]} e5 {[%emt 0:00:00]} 2. Nf3 {[%emt 0:00:00]} Nc6 {[%emt 0:00:00]} 3. Bc4 {[%emt 0:00:00]} Nf6 {[%emt 0:00:00]} 4. Ng5 {[%emt 0:00:00]} d5 {[%emt 0:00:00]} 5. exd5 {[%emt 0:00:18]} Na5 {[%emt 0:00:00]} 6. Bb5+ {[%emt 0:00:15]} c6 {[%emt 0:00:00]} 7. dxc6 {[%emt 0:00:33]} bxc6 {[%emt 0:00:00]} 8. Qf3 {[%emt 0:03:22]} Be7 {[%emt 0:00:56]} 9. Bxc6+ {[%emt 0:03:35]} Nxc6 {[%emt 0:00:01]} 10. Qxc6+ {[%emt 0:00:14]} Bd7 {[%emt 0:00:03]} 11. Qf3 {[%emt 0:01:21]} O-O {[%emt 0:01:36]} 12. O-O {[%emt 0:01:11]} Bg4 {[%emt 0:00:24]} 13. Qg3 {[%emt 0:02:41]} Qd7 {[%emt 0:07:33]} 14. d3 {[%emt 0:11:10]} Nh5 {[%emt 0:04:52]} 15. Qe3 {[%emt 0:07:32]} Nf4 {[%emt 0:00:22]} 16. Ne4 {[%emt 0:02:05]} f5 {[%emt 0:01:15]} 17. Nc5 {[%emt 0:02:23]} Qd5 {[%emt 0:00:27]} 18. Qg3 {[%emt 0:03:33]} Ne2+ {[%emt 0:00:31]} 0-1

[Event "NED-ch U14 Youth 2019"]
[Site "Assen"]
[Date "2019.04.28"]
[Round "1.13"]
[White "Bartels, Vladimir"]
[Black "Tiggelman, Vincent"]
[Result "1-0"]
[ECO "B11"]
[WhiteElo "1748"]
[BlackElo "1378"]
[Annotator "NA"]
[PlyCount "35"]
[EventDate "2019.04.27"]
[EventType "swiss"]
[EventCountry "NED"]
[SourceTitle "playchess.com"]
[Source "ChessBase"]
[SourceQuality "1"]
[TimeControl "5400+30"]

1. e4 {[%emt 0:00:00]} c6 {[%emt 0:00:00]} 2. Nc3 {[%emt 0:00:00]} d5 {[%emt 0:00:00]} 3. Nf3 {[%emt 0:00:00]} dxe4 {[%emt 0:00:00]} 4. Nxe4 {[%emt 0:00:00]} Bf5 {[%emt 0:00:05]} 5. Ng3 {[%emt 0:00:00]} Bg6 {[%emt 0:00:07]} 6. h4 {[%emt 0:00:03]} h6 {[%emt 0:00:07]} 7. Ne5 {[%emt 0:00:29]} Nf6 {[%emt 0:20:00]} 8. Nxg6 {[%emt 0:00:10]} fxg6 {[%emt 0:00:13]} 9. d4 {[%emt 0:00:13]} e6 {[%emt 0:33:33]} 10. Bd3 {[%emt 0:00:32]} Qe7 {[%emt 0:01:17]} 11. Bxg6+ {[%emt 0:00:12]} Kd8 {[%emt 0:00:09]} 12. O-O {[%emt 0:01:02]} Nbd7 {[%emt 0:01:38]} 13. Re1 {[%emt 0:02:12]} Qd6 {[%emt 0:03:43]} 14. Bf7 {[%emt 0:25:06]} Qc7 {[%emt 0:24:38]} 15. Bxe6 {[%emt 0:01:26]} Kc8 {[%emt 0:06:48]} 16. Qf3 {[%emt 0:02:00]} Qb6 {[%emt 0:04:49]} 17. Bxd7+ {[%emt 0:00:40]} Nxd7 {[%emt 0:00:13]} 18. Re8+ {[%emt 0:00:10]} 1-0

[Event "NED-ch U14 Youth 2019"]
[Site "Assen"]
[Date "2019.04.29"]
[Round "2.1"]
[White "Brandsma, Romayn"]
[Black "Bartels, Vladimir"]
[Result "1-0"]
[ECO "C53"]
[WhiteElo "1958"]
[BlackElo "1748"]
[Annotator "NA RC"]
[PlyCount "57"]
[EventDate "2019.04.28"]
[EventType "swiss"]
[EventCountry "NED"]
[SourceTitle "playchess.com"]
[Source "ChessBase"]
[SourceQuality "1"]
[TimeControl "5400+30"]

{[%evp 8,57,24,20,32,42,64,62,51,34,288,292,328,361,325,32767,32767,343,361,381,364,361,407,32767,32767,32767,32767,419,32767,462,32767,621,32767,605,601,598,650,32767,681,672,752,781,1356,1761,1502,32767,32767,32767,1450,1696,1344,1353]} 1. e4 {[%emt 0:00:00]} e5 {[%emt 0:00:00]} 2. Nf3 {[%emt 0:00:00]} Nc6 {[%emt 0:00:00]} 3. d4 {[%emt 0:00:00]} exd4 {[%emt 0:00:00]} 4. Bc4 {[%emt 0:00:06]} Bc5 {[%emt 0:00:00]} 5. c3 {[%emt 0:00:09]} d6 {[%emt 0:02:30]} 6. cxd4 {[%emt 0:00:28]} Bb4+ {[%emt 0:00:06]} 7. Nc3 {[%emt 0:01:21]} Nf6 {[%emt 0:00:12]} 8. d5 {[%emt 0:14:55]} Ne5 $2 {[%emt 0:06:15] C53: Giuoco Piano sidelines} (8... Bxc3+ $1 $14 9. bxc3 Ne7 10. Qd4 O-O 11. Bg5 Nd7 12. Bxe7 Qxe7 13. O-O f6 14. Rae1 a6 15. Bb3 Kh8 16. Nd2 {½-½ (28) Nordenbaek,J (2252)-Glud,J (2496) Denmark 2011}) 9. Qa4+ {[%emt 0:01:40] Double Attack} c6 {[%emt 0:31:47]} 10. Qxb4 {[%emt 0:04:43]} a5 {[%emt 0:01:41]} 11. Qb3 {[%emt 0:01:52]} a4 {[%emt 0:00:39]} 12. Qb4 {[%emt 0:14:27]} ({Don't take} 12. Nxa4 b5 $18) 12... c5 {[%emt 0:02:00]} 13. Bb5+ {[%emt 0:00:14] Double Attack} Nfd7 $146 {[%emt 0:32:00]} ({Predecessor:} 13... Kf8 14. Qa3 Nfd7 15. Nxe5 Nxe5 16. Bf4 {1-0 (38) Gonzalez Pruneda,A (2131)-Birkisson,B (1845) Reykjavik 2015}) 14. Qa3 {[%emt 0:01:27]} O-O {[%emt 0:01:10]} 15. Bf4 {[%emt 0:05:46]} Nxf3+ {[%emt 0:06:24]} 16. gxf3 {[%emt 0:00:22]} Nb6 {[%emt 0:01:20]} 17. Ne2 {[%emt 0:02:23]} Qf6 {[%emt 0:05:44]} 18. Qc3 {[%emt 0:01:19]} Qxc3+ {[%emt 0:02:19]} 19. Nxc3 {[%emt 0:00:09]} Rd8 {[%emt 0:00:16]} 20. Bd3 {[%emt 0:00:27]} Ra5 {[%emt 0:04:00]} 21. Kd2 {[%emt 0:00:41]} h6 {[%emt 0:00:24]} 22. Rag1 {[%emt 0:00:30]} c4 {[%emt 0:01:03]} 23. Bc2 {[%emt 0:00:17]} a3 {[%emt 0:00:50]} 24. Bxh6 {[%emt 0:01:05]} Kh7 {[%emt 0:00:01]} 25. Bxg7 {[%emt 0:00:12]} axb2 {[%emt 0:00:13]} 26. e5+ {[%emt 0:00:07]} f5 {[%emt 0:00:21]} 27. exf6+ {[%emt 0:00:10]} Kg8 {[%emt 0:00:15]} 28. Bh6+ {[%emt 0:00:44]} Kf7 $18 {[%emt 0:00:21]} 29. Bg6+ {[%emt 0:00:15]} 1-0

[Event "NED-ch U14 Youth 2019"]
[Site "Assen"]
[Date "2019.04.29"]
[Round "2.2"]
[White "Yeh, Timo"]
[Black "Bleeker, Kasper"]
[Result "1-0"]
[ECO "D02"]
[WhiteElo "1783"]
[BlackElo "1932"]
[Annotator "NA RC"]
[PlyCount "85"]
[EventDate "2019.04.28"]
[EventType "swiss"]
[EventCountry "NED"]
[SourceTitle "playchess.com"]
[Source "ChessBase"]
[SourceQuality "1"]
[TimeControl "5400+30"]

{[%evp 8,85,14,16,6,8,0,-26,-24,-29,-15,-43,-43,-50,-52,-44,-52,-59,0,-20,0,0,0,0,8,-215,-204,-221,32767,32767,32767,32767,32767,32767,32767,32767,616,311,308,329,32767,32767,32767,32767,32767,84,88,0,656,696,32767,32767,779,677,744,743,685,709,702,32767,709,740,697,703,787,798,32767,864,29968,32767,29988,29984,2924,29984,29988,32767,29978,29985,29985,29982]} 1. d4 {[%emt 0:00:00]} d5 {[%emt 0:01:58]} 2. Nf3 {[%emt 0:00:00]} Nf6 {[%emt 0:00:12]} 3. Bf4 {[%emt 0:00:00]} Bf5 {[%emt 0:00:58]} 4. e3 {[%emt 0:00:00]} e6 {[%emt 0:00:36]} 5. c4 {[%emt 0:00:00]} Bd6 {[%emt 0:10:40]} 6. Bg3 {[%emt 0:00:06] D02: 1 d4 d5 2 Nf3 sidelines, including 2...Nf6 3 g3 and 2...Nf6 3 Bf4} O-O {[%emt 0:03:15]} 7. c5 {[%emt 0:01:21]} (7. Nc3 c6 8. Qb3 Bxg3 9. hxg3 Nbd7 10. Be2 Rb8 11. a4 h6 12. O-O a5 13. Rfd1 {½-½ (37) Kamsky,G (2666)-Matlakov,M (2700) St Petersburg 2018}) 7... Be7 $146 {[%emt 0:03:07]} ({Predecessor:} 7... Bxg3 8. hxg3 h6 9. Be2 Nbd7 10. O-O c6 11. Nbd2 Re8 12. Nh4 Bh7 13. b4 {½-½ (42) Cibikova,S (1582)-Sosovicka,J (1758) Kouty nad Desnou 2015}) 8. Nc3 {[%emt 0:00:34]} b6 {[%emt 0:02:26]} 9. b4 {[%emt 0:01:17]} a5 {[%emt 0:04:16]} 10. a3 $1 {[%emt 0:01:07]} axb4 {[%emt 0:01:30]} 11. axb4 {[%emt 0:00:10]} Nc6 {[%emt 0:01:39]} 12. Ra4 $1 {[%emt 0:06:47]} Rxa4 {[%emt 0:05:02]} 13. Qxa4 {[%emt 0:00:02]} Qa8 {[%emt 0:00:19]} 14. Bxc7 {[%emt 0:11:39]} bxc5 {[%emt 0:04:56]} 15. bxc5 {[%emt 0:00:27]} Qb7 {[%emt 0:01:27]} 16. Bb6 $2 {[%emt 0:00:26]} (16. Bb5 $11 {and White is okay.}) 16... Ra8 {[%emt 0:00:21]} 17. Qd1 {[%emt 0:00:23]} Nb4 {[%emt 0:01:29]} 18. Bb5 {[%emt 0:04:47]} Ra1 {[%emt 0:02:10]} 19. Qxa1 {[%emt 0:00:01]} Nc2+ {[%emt 0:00:01]} 20. Kd2 {[%emt 0:00:01]} Nxa1 {[%emt 0:00:13]} 21. Rxa1 {[%emt 0:00:01]} Bd8 {[%emt 0:19:17]} (21... Bf8 $142 22. Ra7 Qc8) 22. Ne5 {[%emt 0:05:54]} ({Weaker is} 22. Bxd8 Ne4+ 23. Nxe4 Qxb5 $17) 22... Bxb6 {[%emt 0:10:21]} 23. Bc6 {[%emt 0:00:16]} Ne4+ {[%emt 0:11:55]} 24. Kc1 {[%emt 0:03:35]} Qe7 {[%emt 0:04:16]} 25. cxb6 {[%emt 0:00:33]} h6 {[%emt 0:02:51]} 26. Ra8+ $2 {[%emt 0:06:16]} (26. Nxe4 $18 Qb4 27. b7 (27. Ra8+ Kh7 $18) 27... Bxe4 {[#]} 28. b8=Q+ $1 {[%mdl 512]} (28. Ra8+) 28... Qxb8 29. Ra8 Qxa8 30. Bxa8) 26... Kh7 {[%emt 0:00:04] [#]} 27. Na2 {[%emt 0:00:17]} ({Reject} 27. b7 $6 Qb4 $11) ({White has to play} 27. Nxe4 $1 $16 Bxe4 28. f3 (28. b7 Qb4 $11)) 27... Qh4 $2 {[%emt 0:02:03]} (27... Nd6 $11 28. g3 Bg6) 28. b7 {[%emt 0:17:05]} Qxf2 {[%emt 0:00:22]} 29. b8=Q {[%emt 0:03:50]} Qd2+ {[%emt 0:05:30]} 30. Kb1 {[%emt 0:00:02]} Nc3+ {[%emt 0:00:01]} 31. Ka1 {[%emt 0:00:10]} Qd1+ {[%emt 0:00:04]} 32. Kb2 {[%emt 0:00:07]} Qc2+ {[%emt 0:00:07]} 33. Ka3 {[%emt 0:00:08]} Qxa2+ {[%emt 0:00:34]} 34. Kb4 {[%emt 0:00:00]} Qb2+ {[%emt 0:00:42]} 35. Ka5 {[%emt 0:00:11]} Qa3+ {[%emt 0:01:28]} 36. Kb6 {[%emt 0:00:06]} Qb4+ {[%emt 0:00:57]} 37. Kc7 {[%emt 0:00:13]} Qe7+ {[%emt 0:00:07]} 38. Bd7 {[%emt 0:00:11]} Nb5+ {[%emt 0:00:30]} 39. Qxb5 {[%emt 0:00:27]} f6 {[%emt 0:00:02]} 40. Nc6 {[%emt 0:00:38]} Qf7 {[%emt 0:00:10]} 41. Qb8 {[%emt 0:00:32]} e5 {[%emt 0:00:18] [#]} 42. Qg8+ $3 {[%emt 0:00:27]} Qxg8 {[%emt 0:00:20]} 43. Bxf5+ {[%emt 0:00:08]} 1-0

[Event "NED-ch U14 Youth 2019"]
[Site "Assen"]
[Date "2019.04.29"]
[Round "2.3"]
[White "De Winter, Arthur"]
[Black "Labruyere, Roger"]
[Result "1/2-1/2"]
[ECO "B90"]
[WhiteElo "1661"]
[BlackElo "1922"]
[Annotator "NA RC"]
[PlyCount "77"]
[EventDate "2019.04.28"]
[EventType "swiss"]
[EventCountry "NED"]
[SourceTitle "playchess.com"]
[Source "ChessBase"]
[SourceQuality "1"]
[TimeControl "5400+30"]

{[%evp 8,69,34,31,28,8,39,1,41,37,55,0,58,-7,99,11,23,9,26,35,23,24,27,32,29,38,58,34,77,30,42,18,216,197,32767,32767,224,32767,32767,32767,217,211,263,32767,512,539,554,591,502,591,505,562,555,556,591,32767,0,0,256,0,240,0,32767,0]} 1. e4 {[%emt 0:00:00]} c5 {[%emt 0:00:00]} 2. Nf3 {[%emt 0:00:00]} d6 {[%emt 0:00:00]} 3. d4 {[%emt 0:00:00]} cxd4 {[%emt 0:00:00]} 4. Nxd4 {[%emt 0:00:00]} Nf6 {[%emt 0:00:00]} 5. Nc3 {[%emt 0:00:00]} a6 {[%emt 0:00:01]} 6. h3 {[%emt 0:00:00]} e5 {[%emt 0:00:47]} 7. Nb3 {[%emt 0:00:05]} h5 {[%emt 0:01:47] B90: Sicilian Najdorf: Unusual White 6th moves, 6 Be3 Ng4 and 6 Be3 e5} (7... Be6 8. f4 exf4 9. Bxf4 Nc6 10. Qe2 Be7 11. O-O-O Qc7 12. g4 O-O 13. g5 Nd7 14. Qe3 Rac8 15. Kb1 {1-0 (60) Van Foreest,J (2612)-Nepomniachtchi,I (2763) Wijk aan Zee 2019}) 8. Be3 {[%emt 0:01:29]} Be7 {[%emt 0:00:24]} 9. Nd5 $146 {[%emt 0:00:36]} ({Predecessor:} 9. Qd2 Be6 10. O-O-O Nbd7 11. f4 Rc8 12. Kb1 b5 13. Bd3 h4 14. Rhe1 Qc7 15. a3 {0-1 (46) Zhigalko,A (2589)-Andriasian,Z (2605) Warsaw 2012}) 9... Nbd7 {[%emt 0:01:16]} ({Black should try} 9... Nxd5 $11 10. exd5 (10. Qxd5 Nc6 $11) 10... Bf5) 10. Bd3 {[%emt 0:02:35]} (10. Nxe7 $14 Qxe7 11. Bg5) 10... b5 {[%emt 0:02:42]} (10... Nxd5 $11 {keeps the balance.} 11. exd5 b5) 11. a4 {[%emt 0:02:21]} (11. Nxe7 $16 Kxe7 12. a4) 11... Nxd5 {[%emt 0:09:30]} 12. exd5 {[%emt 0:00:09]} Bb7 {[%emt 0:04:26]} 13. axb5 {[%emt 0:01:36]} axb5 {[%emt 0:01:50]} 14. Bxb5 {[%emt 0:04:18]} Rxa1 {[%emt 0:01:07]} 15. Qxa1 {[%emt 0:00:42]} Bxd5 {[%emt 0:01:21]} 16. O-O {[%emt 0:00:32]} O-O {[%emt 0:00:26]} 17. c4 {[%emt 0:01:49]} Be6 {[%emt 0:06:23]} 18. Qa7 {[%emt 0:02:45]} f5 {[%emt 0:03:12]} 19. f4 {[%emt 0:04:50]} g5 $2 {[%emt 0:03:23] [#]} (19... Bf6 $11 {and Black is okay.}) 20. fxe5 $1 {[%emt 0:04:46]} Nxe5 {[%emt 0:06:59]} 21. Bb6 {[%emt 0:01:09]} Qb8 {[%emt 0:01:41]} 22. Qxe7 {[%emt 0:00:22]} Qxb6+ {[%emt 0:00:39]} 23. Kh1 {[%emt 0:00:30]} Bf7 {[%emt 0:05:07]} 24. Rxf5 {[%emt 0:00:46]} g4 {[%emt 0:06:22]} 25. Qf6 {[%emt 0:03:29]} Qe3 $2 {[%emt 0:07:02]} (25... gxh3 {was worth a try.} 26. Rg5+ Bg6 27. Rxg6+ Nxg6 28. Qxg6+ {[%mdl 64] Double Attack} Kh8 29. Qh6+ Kg8 30. Qg5+ Kh7 31. Qxh5+ {[%mdl 64] Double Attack} Kg8 32. Qd5+ Kh8 33. Qh5+ {[%mdl 64] Double Attack} Kg7 34. Qg4+ Kf7 35. gxh3 Qe3) 26. Rg5+ {[%emt 0:01:08]} Bg6 {[%emt 0:00:57]} 27. Rxg6+ {[%emt 0:00:06]} Nxg6 {[%emt 0:00:04]} 28. Qxg6+ {[%emt 0:00:06] Double Attack} Kh8 {[%emt 0:00:12]} 29. Qxh5+ {[%emt 0:00:08]} Kg7 {[%emt 0:00:35]} 30. Qxg4+ {[%emt 0:00:08]} Kh7 {[%emt 0:00:42]} 31. Qd7+ {[%emt 0:02:18]} Kh8 {[%emt 0:03:35]} 32. Qxd6 {[%emt 0:06:33]} Rf1+ {[%emt 0:00:54]} 33. Kh2 {[%emt 0:00:25]} Qg1+ {[%emt 0:00:16]} 34. Kg3 {[%emt 0:00:47]} Qf2+ {[%emt 0:00:10]} 35. Kh2 $11 {[%emt 0:01:55]} ({Avoid the trap} 35. Kg4 $2 Qxg2+ 36. Qg3 Qe4+ 37. Kh5 Rf5+ 38. Qg5 Qf3+ 39. Kh4 Rxg5 $19) 35... Qg1+ {[%emt 0:00:05]} 36. Kg3 {[%emt 0:00:18]} Qf2+ {[%emt 0:00:05]} 37. Kh2 {[%emt 0:01:26]} Qg1+ {[%emt 0:00:07]} 38. Kg3 {[%emt 0:01:02]} Qf2+ {[%emt 0:00:04]} 39. Kh2 {[%emt 0:01:33]} 1/2-1/2

[Event "NED-ch U14 Youth 2019"]
[Site "Assen"]
[Date "2019.04.29"]
[Round "2.4"]
[White "Franke, Daniel"]
[Black "Boghossian, Wahe"]
[Result "0-1"]
[ECO "B14"]
[WhiteElo "1465"]
[BlackElo "1820"]
[Annotator "NA RC"]
[PlyCount "68"]
[EventDate "2019.04.28"]
[EventType "swiss"]
[EventCountry "NED"]
[SourceTitle "playchess.com"]
[Source "ChessBase"]
[SourceQuality "1"]
[TimeControl "5400+30"]

{[%evp 8,60,25,27,17,1,28,31,26,0,3,-18,-22,-30,-9,-45,-38,-51,8,17,30,23,32,-164,-156,-317,-41,-52,-33,-56,0,0,0,32767,0,-4,32767,32767,32767,-47,0,4,32767,32767,32767,32767,32767,0,26,0,32767,-496,32767,-250,227]} 1. d4 {[%emt 0:00:00]} Nf6 {[%emt 0:00:00]} 2. c4 {[%emt 0:00:00]} e6 {[%emt 0:00:00]} 3. Nc3 {[%emt 0:00:00]} c5 {[%emt 0:00:00]} 4. e3 {[%emt 0:00:09]} cxd4 {[%emt 0:00:00]} 5. exd4 {[%emt 0:00:05]} d5 {[%emt 0:00:19]} 6. c5 {[%emt 0:00:29]} Nc6 {[%emt 0:02:08]} 7. Nf3 {[%emt 0:02:24]} Be7 {[%emt 0:01:17]} 8. Be3 {[%emt 0:02:40] B14: Caro-Kann: Panov-Botvinnik Attack with 5...e6 and 5...g6} (8. Bb5 O-O 9. O-O Qc7 10. Re1 h6 11. g3 Rd8 12. Bf4 Qa5 13. Ba4 Ne4 14. Nxe4 dxe4 15. Rxe4 b5 16. Bb3 Bb7 17. Qe2 {1-0 (25) Li,C (2739)-Shytaj,L (2465) Germany 2017}) 8... O-O {[%emt 0:02:12]} 9. Be2 {[%emt 0:01:22]} b6 {[%emt 0:11:24]} 10. Bb5 {[%emt 0:02:27]} Bb7 {[%emt 0:05:54]} 11. Bxc6 {[%emt 0:01:31]} Bxc6 {[%emt 0:00:06]} 12. Ne5 {[%emt 0:01:41]} Rc8 $146 {[%emt 0:05:04]} (12... Be8 $15) ({Predecessor:} 12... Qc7 13. Bf4 Qb7 14. Nxc6 Qxc6 {0-1 (35) Pammer,A (2086)-Mostbauer,F (2342) Austria 2018}) 13. b4 {[%emt 0:01:37]} bxc5 {[%emt 0:02:22]} 14. dxc5 {[%emt 0:00:46]} Nd7 {[%emt 0:03:03]} 15. Nxd7 $2 {[%emt 0:04:10]} (15. Nxc6 $14 {was the only good move.} Rxc6 16. O-O) 15... Qxd7 {[%emt 0:00:33]} 16. Bd4 $2 {[%emt 0:18:31] [#]} (16. O-O $17) 16... Rfe8 $2 {[%emt 0:11:21]} ({Better is} 16... e5 $1 $19 {[%cal Re5d4][%mdl 512]} 17. Bxe5 Qe6) 17. O-O {[%emt 0:07:20]} f6 {[%emt 0:07:05]} 18. f4 {[%emt 0:01:34] [#]} Bd8 {[%emt 0:01:13]} ({Black should try} 18... a5 $1 $15 {[%mdl 512]} 19. a3 (19. bxa5 Qa7) 19... Rb8) 19. Re1 {[%emt 0:11:41]} Bc7 {[%emt 0:09:02]} 20. Qb3 {[%emt 0:01:34]} Bxf4 {[%emt 0:05:00]} ({Black should try} 20... Rb8 $17 21. a4 a6) 21. b5 {[%emt 0:05:16]} Ba8 {[%emt 0:00:36]} 22. c6 {[%emt 0:00:05]} Qc7 {[%emt 0:00:42]} 23. g3 {[%emt 0:00:40]} Bd2 {[%emt 0:01:41]} (23... Bxg3 $5 24. hxg3 Qxg3+ 25. Kf1 Qf3+ 26. Bf2 {[#]} a6 $1 $15 {[%mdl 512]}) 24. Re2 {[%emt 0:01:26]} Bxc3 {[%emt 0:00:33]} 25. Qxc3 {[%emt 0:00:06]} Rb8 {[%emt 0:02:08]} 26. Rb2 {[%emt 0:00:40]} e5 {[%emt 0:05:30]} 27. Bc5 {[%emt 0:01:15]} d4 {[%emt 0:01:21]} (27... a6 $5 28. a4 $8 Bxc6 29. bxc6 Qxc6 $11) 28. Qb3+ {[%emt 0:01:32]} Kh8 {[%emt 0:00:23]} 29. Qa3 $2 {[%emt 0:00:23]} (29. Rc1 $1 $11) 29... d3 {[%emt 0:19:27]} 30. Rab1 $19 {[%emt 0:04:07] [#]} ({Don't blunder} 30. Bxa7 $2 {[#]} Rxb5 $3 {[%mdl 576] Remove Defender} 31. Rxb5 Qxc6 $19) (30. Qxa7 $16 Qc8 31. Bb6 Bxc6 32. bxc6 Qxc6 33. Rab1) 30... d2 $4 {[%emt 0:01:05]} (30... Rxb5 $1 $19 {[%mdl 512]} 31. Rxb5 Qxc6) 31. Be3 {[%emt 0:01:27]} Rxb5 {[%emt 0:01:43]} 32. Rxb5 {[%emt 0:02:04]} Qxc6 {[%emt 0:00:02]} 33. Rb7 {[%emt 0:02:23]} Bxb7 {[%emt 0:00:25]} 34. Rxb7 {[%emt 0:00:08]} d1=Q+ {[%emt 0:00:11]} 0-1